[Event "*** Titled Tuesday Blitz"]
[Site "Chess.com"]
[Date "2019.03.05"]
[Round "2"]
[White "M1711"]
[Black "tunadrol"]
[Result "1-0"]
[WhiteElo "2520"]
[BlackElo "2483"]
[TimeControl "180+2"]
[EndTime "13:23:18 PST"]
[Termination "M1711 won by resignation"]

1. d4 {[%clk 0:03:01.9]} 1... Nf6 {[%clk 0:03:00.6]} 2. Bg5 {[%clk 0:03:01.2]}
2... g6 {[%clk 0:03:00.1]} 3. Bxf6 {[%clk 0:03:02]} 3... exf6 {[%clk 0:03:01.2]}
4. e3 {[%clk 0:03:03.5]} 4... d5 {[%clk 0:03:02.4]} 5. g3 {[%clk 0:03:04.6]}
5... Bd6 {[%clk 0:03:03.3]} 6. Bg2 {[%clk 0:03:05.9]} 6... c6 {[%clk 0:03:04.4]}
7. Ne2 {[%clk 0:03:07.3]} 7... O-O {[%clk 0:03:05.3]} 8. O-O {[%clk 0:03:08.5]}
8... Nd7 {[%clk 0:03:04.5]} 9. c4 {[%clk 0:03:04.7]} 9... dxc4 {[%clk 0:03:05]}
10. Nd2 {[%clk 0:03:06.1]} 10... f5 {[%clk 0:02:53.5]} 11. Nxc4 {[%clk 0:03:01]}
11... Bc7 {[%clk 0:02:54.2]} 12. b4 {[%clk 0:03:02]} 12... Nf6 {[%clk
0:02:53.4]} 13. Rb1 {[%clk 0:03:01.3]} 13... Be6 {[%clk 0:02:51.1]} 14. Qc2
{[%clk 0:03:01.2]} 14... Bd5 {[%clk 0:02:50.1]} 15. a4 {[%clk 0:02:27.9]} 15...
Ne4 {[%clk 0:02:36.6]} 16. Rfd1 {[%clk 0:02:20.2]} 16... Ng5 {[%clk 0:02:33]}
17. Nd2 {[%clk 0:02:06.6]} 17... Re8 {[%clk 0:02:03.5]} 18. Nc3 {[%clk 0:02:03]}
18... Ne4 {[%clk 0:01:44.1]} 19. Ndxe4 {[%clk 0:01:52.6]} 19... fxe4 {[%clk
0:01:35.2]} 20. Bxe4 {[%clk 0:01:49]} 20... Bxe4 {[%clk 0:00:43.3]} 21. Nxe4
{[%clk 0:01:50.9]} 21... Qe7 {[%clk 0:00:41]} 22. Nc5 {[%clk 0:01:48.3]} 22...
Bd6 {[%clk 0:00:41.9]} 23. Nd3 {[%clk 0:01:44.4]} 23... h5 {[%clk 0:00:39.7]}
24. Qe2 {[%clk 0:01:45.4]} 24... Qg5 {[%clk 0:00:36.8]} 25. Qf3 {[%clk
0:01:40.6]} 25... Re6 {[%clk 0:00:35.3]} 26. h4 {[%clk 0:01:27.4]} 26... Qe7
{[%clk 0:00:35.3]} 27. b5 {[%clk 0:01:26.8]} 27... Rf6 {[%clk 0:00:34.8]} 28.
Qg2 {[%clk 0:01:24.2]} 28... Rc8 {[%clk 0:00:25.1]} 29. Rdc1 {[%clk 0:01:19.1]}
29... Ba3 {[%clk 0:00:21.2]} 30. Rc2 {[%clk 0:01:16.7]} 30... Qd6 {[%clk
0:00:14.5]} 31. Ne5 {[%clk 0:01:03.4]} 31... c5 {[%clk 0:00:14.4]} 32. Nc4
{[%clk 0:01:00.5]} 32... Qe6 {[%clk 0:00:07]} 33. Nxa3 {[%clk 0:01:01.6]} 33...
Qf5 {[%clk 0:00:07.6]} 34. Rbc1 {[%clk 0:01:00.8]} 34... Qd3 {[%clk 0:00:08.6]}
35. Rc3 {[%clk 0:00:59]} 35... Qd2 {[%clk 0:00:08.2]} 36. f3 {[%clk 0:00:51.6]}
36... Qxg2+ {[%clk 0:00:06.9]} 37. Kxg2 {[%clk 0:00:53.5]} 1-0

[Event "*** Titled Tuesday Blitz"]
[Site "Chess.com"]
[Date "2019.03.05"]
[Round "2"]
[White "IakovUlivar"]
[Black "NemtsevIgor"]
[Result "1-0"]
[WhiteElo "2517"]
[BlackElo "2339"]
[TimeControl "180+2"]
[EndTime "13:23:18 PST"]
[Termination "IakovUlivar won by resignation"]

1. e4 {[%clk 0:03:01.9]} 1... c6 {[%clk 0:03:00.5]} 2. Nc3 {[%clk 0:03:00.3]}
2... d5 {[%clk 0:03:01.5]} 3. Nf3 {[%clk 0:03:01.7]} 3... Bg4 {[%clk 0:03:02.5]}
4. h3 {[%clk 0:03:02.3]} 4... Bh5 {[%clk 0:03:03.3]} 5. exd5 {[%clk 0:02:56.7]}
5... cxd5 {[%clk 0:03:04.1]} 6. g4 {[%clk 0:02:57.2]} 6... Bg6 {[%clk
0:03:04.9]} 7. Ne5 {[%clk 0:02:55.6]} 7... Nc6 {[%clk 0:03:05]} 8. d4 {[%clk
0:02:55.7]} 8... e6 {[%clk 0:03:05.2]} 9. h4 {[%clk 0:02:52.4]} 9... f6 {[%clk
0:02:58.7]} 10. h5 {[%clk 0:02:53.3]} 10... fxe5 {[%clk 0:02:43.6]} 11. hxg6
{[%clk 0:02:53.6]} 11... h6 {[%clk 0:02:44.6]} 12. dxe5 {[%clk 0:02:37.3]} 12...
Nxe5 {[%clk 0:02:42.1]} 13. Bb5+ {[%clk 0:02:33.7]} 13... Nc6 {[%clk 0:02:42.7]}
14. Qf3 {[%clk 0:02:06.1]} 14... Qf6 {[%clk 0:02:20.1]} 15. Qxf6 {[%clk
0:02:04.8]} 15... gxf6 {[%clk 0:02:14]} 16. f4 {[%clk 0:01:57.3]} 16... O-O-O
{[%clk 0:02:05]} 17. Bxc6 {[%clk 0:01:38.4]} 17... bxc6 {[%clk 0:02:05.5]} 18.
f5 {[%clk 0:01:34.1]} 18... Bb4 {[%clk 0:01:41.4]} 19. Bd2 {[%clk 0:01:17.1]}
19... Ne7 {[%clk 0:01:38.8]} 20. O-O-O {[%clk 0:00:45.8]} 20... exf5 {[%clk
0:01:37]} 21. gxf5 {[%clk 0:00:47.7]} 21... Nxf5 {[%clk 0:01:36.9]} 22. Rhf1
{[%clk 0:00:37.1]} 22... Bxc3 {[%clk 0:01:07.5]} 23. Bxc3 {[%clk 0:00:30.1]}
23... Ne3 {[%clk 0:01:06.9]} 24. Bxf6 {[%clk 0:00:31.1]} 24... Nxd1 {[%clk
0:01:01]} 25. Bxd8 {[%clk 0:00:21.3]} 25... Ne3 {[%clk 0:00:48.5]} 26. g7 {[%clk
0:00:18]} 26... Rg8 {[%clk 0:00:48.5]} 27. Rf8 {[%clk 0:00:18]} 27... Rxg7
{[%clk 0:00:39.3]} 28. Bf6+ {[%clk 0:00:18.5]} 28... Kd7 {[%clk 0:00:40.8]} 29.
Bxg7 {[%clk 0:00:19.5]} 29... h5 {[%clk 0:00:41]} 30. Bd4 {[%clk 0:00:18.5]}
30... Ng4 {[%clk 0:00:40.7]} 31. Rh8 {[%clk 0:00:17.5]} 31... Kd6 {[%clk
0:00:39.8]} 32. Rxh5 {[%clk 0:00:17.3]} 32... c5 {[%clk 0:00:41.3]} 33. Rg5
{[%clk 0:00:17]} 33... Nh2 {[%clk 0:00:39.7]} 34. Rg6+ {[%clk 0:00:16.9]} 34...
Kd7 {[%clk 0:00:39.5]} 35. Bxc5 {[%clk 0:00:17.7]} 1-0

[Event "*** Titled Tuesday Blitz"]
[Site "Chess.com"]
[Date "2019.03.05"]
[Round "2"]
[White "Off-War"]
[Black "ER404"]
[Result "1-0"]
[WhiteElo "2505"]
[BlackElo "2288"]
[TimeControl "180+2"]
[EndTime "13:23:25 PST"]
[Termination "Off-War won by resignation"]

1. e4 {[%clk 0:03:01.9]} 1... c6 {[%clk 0:02:57.9]} 2. d4 {[%clk 0:03:02.5]}
2... d5 {[%clk 0:02:59.8]} 3. e5 {[%clk 0:03:04]} 3... Bf5 {[%clk 0:03:00.3]} 4.
Nf3 {[%clk 0:03:04.2]} 4... e6 {[%clk 0:03:01.4]} 5. Be2 {[%clk 0:03:05.3]} 5...
Ne7 {[%clk 0:03:01.1]} 6. O-O {[%clk 0:03:06.2]} 6... c5 {[%clk 0:03:02.2]} 7.
c4 {[%clk 0:03:06.9]} 7... Nbc6 {[%clk 0:03:01.2]} 8. Na3 {[%clk 0:03:07.6]}
8... dxc4 {[%clk 0:02:57.9]} 9. dxc5 {[%clk 0:03:07.7]} 9... Nd5 {[%clk
0:02:51.2]} 10. Nxc4 {[%clk 0:03:08.6]} 10... Bxc5 {[%clk 0:02:51.7]} 11. a3
{[%clk 0:03:09.7]} 11... O-O {[%clk 0:02:46.2]} 12. Bg5 {[%clk 0:02:57.3]} 12...
Be7 {[%clk 0:02:41.7]} 13. Bxe7 {[%clk 0:02:57]} 13... Qxe7 {[%clk 0:02:42.9]}
14. Rc1 {[%clk 0:02:53.1]} 14... Rfd8 {[%clk 0:02:41.2]} 15. Qa4 {[%clk
0:02:21.8]} 15... Nf4 {[%clk 0:02:33.6]} 16. Rfe1 {[%clk 0:02:23.2]} 16... Nxe2+
{[%clk 0:02:33.8]} 17. Rxe2 {[%clk 0:02:25.1]} 17... Bd3 {[%clk 0:02:18.5]} 18.
Re3 {[%clk 0:02:24.7]} 18... Bxc4 {[%clk 0:01:57.1]} 19. Qxc4 {[%clk 0:02:25.1]}
19... Qd7 {[%clk 0:01:45.6]} 20. h3 {[%clk 0:02:23.1]} 20... Qd5 {[%clk
0:01:43.7]} 21. Qf4 {[%clk 0:02:23]} 21... h6 {[%clk 0:01:38]} 22. b4 {[%clk
0:02:20.1]} 22... Rac8 {[%clk 0:01:25]} 23. Rec3 {[%clk 0:02:00.3]} 23... Ne7
{[%clk 0:01:17.1]} 24. Qe3 {[%clk 0:01:52.3]} 24... Rxc3 {[%clk 0:01:14.1]} 25.
Rxc3 {[%clk 0:01:54.2]} 25... a6 {[%clk 0:01:04.8]} 26. Rc7 {[%clk 0:01:52.7]}
26... Rd7 {[%clk 0:01:05.7]} 27. Qb6 {[%clk 0:01:44]} 27... Rxc7 {[%clk
0:01:00.9]} 28. Qxc7 {[%clk 0:01:45.9]} 28... Ng6 {[%clk 0:00:59.1]} 29. h4
{[%clk 0:01:33.5]} 29... Nf4 {[%clk 0:00:46.5]} 30. Kh2 {[%clk 0:01:32.7]} 30...
Nd3 {[%clk 0:00:42.3]} 31. Qc8+ {[%clk 0:01:26.4]} 31... Kh7 {[%clk 0:00:42.6]}
32. Qc2 {[%clk 0:01:28]} 32... g6 {[%clk 0:00:35.8]} 33. h5 {[%clk 0:01:25.6]}
33... Nxe5 {[%clk 0:00:35.3]} 34. hxg6+ {[%clk 0:01:25.6]} 34... Nxg6 {[%clk
0:00:17.3]} 35. Qc7 {[%clk 0:01:24.3]} 35... Qh5+ {[%clk 0:00:17.2]} 36. Kg1
{[%clk 0:01:23.1]} 36... Qf5 {[%clk 0:00:10.4]} 37. Qxb7 {[%clk 0:01:21.7]}
37... Kg7 {[%clk 0:00:08.2]} 38. Qxa6 {[%clk 0:01:20.8]} 38... Nf4 {[%clk
0:00:09.3]} 39. Qf1 {[%clk 0:01:13.6]} 39... Nh3+ {[%clk 0:00:09.3]} 40. gxh3
{[%clk 0:01:14]} 40... Qxf3 {[%clk 0:00:10.5]} 41. Qg2+ {[%clk 0:01:15.6]} 41...
Qxg2+ {[%clk 0:00:12]} 42. Kxg2 {[%clk 0:01:17.5]} 42... Kf6 {[%clk 0:00:13.5]}
43. Kf3 {[%clk 0:01:16.3]} 43... Ke5 {[%clk 0:00:15.4]} 44. Ke3 {[%clk
0:01:17.4]} 44... Kd5 {[%clk 0:00:17.3]} 45. b5 {[%clk 0:01:17.7]} 45... Kc5
{[%clk 0:00:15.9]} 46. a4 {[%clk 0:01:18.9]} 46... e5 {[%clk 0:00:13.7]} 47. Ke4
{[%clk 0:01:19.7]} 47... f6 {[%clk 0:00:15]} 48. f4 {[%clk 0:01:20.7]} 1-0

[Event "*** Titled Tuesday Blitz"]
[Site "Chess.com"]
[Date "2019.03.05"]
[Round "2"]
[White "MatBobula"]
[Black "GameOverBro"]
[Result "1-0"]
[WhiteElo "2274"]
[BlackElo "2413"]
[TimeControl "180+2"]
[EndTime "13:23:26 PST"]
[Termination "MatBobula won by resignation"]

1. d4 {[%clk 0:03:01.9]} 1... d6 {[%clk 0:03:00.5]} 2. c4 {[%clk 0:02:56.1]}
2... Nf6 {[%clk 0:03:00.7]} 3. Nf3 {[%clk 0:02:55.5]} 3... Nbd7 {[%clk
0:03:02.2]} 4. g3 {[%clk 0:02:46.9]} 4... e5 {[%clk 0:03:03.3]} 5. Bg2 {[%clk
0:02:47.8]} 5... Be7 {[%clk 0:03:04.8]} 6. O-O {[%clk 0:02:48.3]} 6... O-O
{[%clk 0:03:06.3]} 7. Nc3 {[%clk 0:02:49]} 7... c6 {[%clk 0:03:07.9]} 8. e4
{[%clk 0:02:49.3]} 8... a6 {[%clk 0:03:08.7]} 9. a4 {[%clk 0:02:45.1]} 9... a5
{[%clk 0:03:09.7]} 10. h3 {[%clk 0:02:45.6]} 10... exd4 {[%clk 0:03:11]} 11.
Nxd4 {[%clk 0:02:46.2]} 11... Nc5 {[%clk 0:03:12.9]} 12. Qc2 {[%clk 0:02:39.7]}
12... Re8 {[%clk 0:03:14.2]} 13. Be3 {[%clk 0:02:39.4]} 13... Qc7 {[%clk
0:03:15.6]} 14. Rad1 {[%clk 0:02:34.5]} 14... Bf8 {[%clk 0:03:16.8]} 15. Rfe1
{[%clk 0:02:32.8]} 15... Bd7 {[%clk 0:03:16.9]} 16. f4 {[%clk 0:02:29.7]} 16...
Rad8 {[%clk 0:03:15.9]} 17. Kh2 {[%clk 0:02:27.5]} 17... h5 {[%clk 0:03:16.8]}
18. Bf2 {[%clk 0:02:12.7]} 18... g6 {[%clk 0:03:15]} 19. Nf3 {[%clk 0:02:06.5]}
19... Bg7 {[%clk 0:03:13.6]} 20. e5 {[%clk 0:02:05.8]} 20... dxe5 {[%clk
0:02:48.2]} 21. Bxc5 {[%clk 0:02:03.7]} 21... exf4 {[%clk 0:02:49.2]} 22. Bd6
{[%clk 0:01:56.7]} 22... fxg3+ {[%clk 0:02:50]} 23. Bxg3 {[%clk 0:01:57.1]}
23... Qc8 {[%clk 0:02:49.8]} 24. Rxe8+ {[%clk 0:01:53.2]} 24... Rxe8 {[%clk
0:02:50.4]} 25. Ng5 {[%clk 0:01:41.1]} 25... Bf5 {[%clk 0:02:47.8]} 26. Qf2
{[%clk 0:01:30.2]} 26... Bh6 {[%clk 0:02:32.8]} 27. Nf3 {[%clk 0:01:18.4]} 27...
Be3 {[%clk 0:02:29.6]} 28. Qf1 {[%clk 0:01:16.6]} 28... g5 {[%clk 0:02:21.3]}
29. Nd4 {[%clk 0:01:09.8]} 29... Bxd4 {[%clk 0:02:15.3]} 30. Rxd4 {[%clk
0:01:11.7]} 30... h4 {[%clk 0:02:16.8]} 31. Bd6 {[%clk 0:01:02.9]} 31... Qe6
{[%clk 0:02:09.8]} 32. c5 {[%clk 0:00:50.4]} 32... Kg7 {[%clk 0:02:01.1]} 33.
Qc1 {[%clk 0:00:42.3]} 33... Kg6 {[%clk 0:01:59.5]} 34. Rd2 {[%clk 0:00:36.2]}
34... g4 {[%clk 0:01:56.7]} 35. Re2 {[%clk 0:00:33.3]} 35... g3+ {[%clk
0:01:55.5]} 36. Kg1 {[%clk 0:00:29.4]} 36... Qc4 {[%clk 0:01:49.9]} 37. Rxe8
{[%clk 0:00:27.5]} 37... Nxe8 {[%clk 0:01:48.5]} 38. Qd2 {[%clk 0:00:18.8]}
38... Nf6 {[%clk 0:01:47.7]} 39. Qf4 {[%clk 0:00:19]} 39... Qd3 {[%clk
0:01:45.4]} 40. Bf1 {[%clk 0:00:15.5]} 40... Qc2 {[%clk 0:01:44.6]} 41. Ne2
{[%clk 0:00:13.4]} 41... Ne4 {[%clk 0:01:37.3]} 42. Qxh4 {[%clk 0:00:13.5]}
42... Qd2 {[%clk 0:01:31.5]} 43. Bf4 {[%clk 0:00:12.6]} 43... Ng5 {[%clk
0:01:05.1]} 44. Qxg5+ {[%clk 0:00:12.9]} 44... Kh7 {[%clk 0:01:06.2]} 45. Bxd2
{[%clk 0:00:12.9]} 1-0

[Event "*** Titled Tuesday Blitz"]
[Site "Chess.com"]
[Date "2019.03.05"]
[Round "2"]
[White "Cryptinz"]
[Black "Mikhail_Golubev"]
[Result "0-1"]
[WhiteElo "2344"]
[BlackElo "2459"]
[TimeControl "180+2"]
[EndTime "13:23:29 PST"]
[Termination "Mikhail_Golubev won by checkmate"]

1. d4 {[%clk 0:03:01.9]} 1... Nf6 {[%clk 0:03:00]} 2. c4 {[%clk 0:03:02.1]} 2...
g6 {[%clk 0:03:01]} 3. Nc3 {[%clk 0:03:02.2]} 3... Bg7 {[%clk 0:03:02.5]} 4. e4
{[%clk 0:03:03]} 4... d6 {[%clk 0:03:03.7]} 5. f3 {[%clk 0:03:03.9]} 5... O-O
{[%clk 0:03:04.1]} 6. Nge2 {[%clk 0:03:04.5]} 6... a6 {[%clk 0:03:02]} 7. Be3
{[%clk 0:03:04.2]} 7... Nbd7 {[%clk 0:03:00.2]} 8. Qd2 {[%clk 0:03:03.7]} 8...
b5 {[%clk 0:03:00.3]} 9. cxb5 {[%clk 0:03:04]} 9... axb5 {[%clk 0:03:01.1]} 10.
Nxb5 {[%clk 0:03:02.9]} 10... c6 {[%clk 0:03:00.2]} 11. Nbc3 {[%clk 0:03:03.4]}
11... e5 {[%clk 0:03:00.8]} 12. Ng3 {[%clk 0:02:59.1]} 12... d5 {[%clk 0:02:55]}
13. exd5 {[%clk 0:02:50.2]} 13... Nxd5 {[%clk 0:02:35.2]} 14. Nxd5 {[%clk
0:02:47.1]} 14... cxd5 {[%clk 0:02:36.2]} 15. Be2 {[%clk 0:02:46.5]} 15... f5
{[%clk 0:01:09.2]} 16. dxe5 {[%clk 0:02:28.3]} 16... Nxe5 {[%clk 0:01:02]} 17.
O-O {[%clk 0:02:24.9]} 17... Nc4 {[%clk 0:01:01.2]} 18. Bxc4 {[%clk 0:02:25.2]}
18... dxc4 {[%clk 0:01:02.2]} 19. Qc2 {[%clk 0:01:50.9]} 19... Qd3 {[%clk
0:01:00.6]} 20. Qxd3 {[%clk 0:01:36.2]} 20... cxd3 {[%clk 0:01:01.6]} 21. Bc5
{[%clk 0:01:26.9]} 21... Rd8 {[%clk 0:00:51.7]} 22. Ba3 {[%clk 0:01:16.3]} 22...
d2 {[%clk 0:00:34.8]} 23. Rab1 {[%clk 0:01:05.1]} 23... Be6 {[%clk 0:00:31.1]}
24. Bb4 {[%clk 0:00:47]} 24... Bxa2 {[%clk 0:00:25.6]} 25. Rbd1 {[%clk
0:00:44.7]} 25... Bc4 {[%clk 0:00:13.9]} 26. Rf2 {[%clk 0:00:20.3]} 26... Ra1
{[%clk 0:00:11.8]} 27. Rxa1 {[%clk 0:00:16]} 27... d1=Q+ {[%clk 0:00:12.7]} 28.
Rxd1 {[%clk 0:00:17.1]} 28... Rxd1+ {[%clk 0:00:13.2]} 29. Nf1 {[%clk
0:00:15.4]} 29... Bd4 {[%clk 0:00:13.6]} 30. Bc3 {[%clk 0:00:04.2]} 30... Rxf1#
{[%clk 0:00:13.4]} 0-1

[Event "*** Titled Tuesday Blitz"]
[Site "Chess.com"]
[Date "2019.03.05"]
[Round "2"]
[White "bootstar"]
[Black "Salem-AR"]
[Result "1-0"]
[WhiteElo "2615"]
[BlackElo "2927"]
[TimeControl "180+2"]
[EndTime "13:23:31 PST"]
[Termination "bootstar won by resignation"]

1. e4 {[%clk 0:03:01.9]} 1... c5 {[%clk 0:02:59.6]} 2. Nf3 {[%clk 0:03:02.8]}
2... d6 {[%clk 0:03:00.9]} 3. d4 {[%clk 0:03:04]} 3... cxd4 {[%clk 0:03:02.8]}
4. Qxd4 {[%clk 0:03:05.5]} 4... Nf6 {[%clk 0:03:03.5]} 5. e5 {[%clk 0:03:06.9]}
5... Nc6 {[%clk 0:03:02.6]} 6. Bb5 {[%clk 0:03:07.5]} 6... Qa5+ {[%clk
0:03:03.6]} 7. Nc3 {[%clk 0:03:08.4]} 7... Qxb5 {[%clk 0:03:05.2]} 8. Nxb5
{[%clk 0:03:10.3]} 8... Nxd4 {[%clk 0:03:06.9]} 9. Nfxd4 {[%clk 0:03:12.2]} 9...
dxe5 {[%clk 0:03:08.5]} 10. Nc7+ {[%clk 0:03:13.7]} 10... Kd8 {[%clk 0:02:41.7]}
11. Nxa8 {[%clk 0:03:15.6]} 11... exd4 {[%clk 0:02:42.8]} 12. Bf4 {[%clk
0:03:16]} 12... Nd7 {[%clk 0:02:41.8]} 13. Bc7+ {[%clk 0:03:13.1]} 13... Ke8
{[%clk 0:02:41.9]} 14. Bg3 {[%clk 0:03:13.1]} 14... e5 {[%clk 0:02:40.8]} 15.
Nc7+ {[%clk 0:03:12.9]} 15... Kd8 {[%clk 0:02:37]} 16. Nd5 {[%clk 0:03:12.6]}
16... f6 {[%clk 0:02:35.4]} 17. f4 {[%clk 0:03:01.3]} 17... b6 {[%clk
0:02:28.8]} 18. fxe5 {[%clk 0:02:57]} 18... fxe5 {[%clk 0:02:20.1]} 19. Bh4+
{[%clk 0:02:51.8]} 19... Ke8 {[%clk 0:02:20.2]} 20. Nc7+ {[%clk 0:02:37.9]}
20... Kf7 {[%clk 0:02:20.2]} 21. O-O+ {[%clk 0:02:39.4]} 21... Nf6 {[%clk
0:02:21.5]} 22. Nd5 {[%clk 0:02:36.3]} 22... Be7 {[%clk 0:02:08.7]} 23. Rae1
{[%clk 0:02:28.1]} 23... Ba6 {[%clk 0:01:42.3]} 24. Rf2 {[%clk 0:02:19.4]} 24...
Rc8 {[%clk 0:01:23.1]} 25. Nxe7 {[%clk 0:02:17.8]} 25... Kxe7 {[%clk 0:01:25]}
26. Rxe5+ {[%clk 0:02:16.8]} 26... Kd6 {[%clk 0:01:26.2]} 27. Bxf6 {[%clk
0:02:14.2]} 27... gxf6 {[%clk 0:01:26.8]} 28. Ref5 {[%clk 0:02:10.6]} 28... Re8
{[%clk 0:01:07.7]} 29. Rxf6+ {[%clk 0:02:10.8]} 29... Kc5 {[%clk 0:01:07.7]} 30.
h3 {[%clk 0:02:06.3]} 30... Re1+ {[%clk 0:00:59.5]} 31. Kh2 {[%clk 0:02:06.3]}
31... Rb1 {[%clk 0:01:01.2]} 32. R6f5+ {[%clk 0:01:59.2]} 32... Kc4 {[%clk
0:00:56.3]} 33. c3 {[%clk 0:01:56.1]} 33... dxc3 {[%clk 0:00:49.9]} 34. bxc3
{[%clk 0:01:53.1]} 34... Kxc3 {[%clk 0:00:49.5]} 35. Rf7 {[%clk 0:01:53.8]}
35... Bd3 {[%clk 0:00:46.2]} 36. Rc7+ {[%clk 0:01:51.2]} 36... Kb4 {[%clk
0:00:42.3]} 37. Rxa7 {[%clk 0:01:52.2]} 37... b5 {[%clk 0:00:43.2]} 38. Rd7
{[%clk 0:01:49.3]} 38... Bg6 {[%clk 0:00:40.5]} 39. h4 {[%clk 0:01:50.6]} 39...
Re1 {[%clk 0:00:35.9]} 40. Rd5 {[%clk 0:01:44.9]} 40... Kc4 {[%clk 0:00:31.3]}
41. Rg5 {[%clk 0:01:45.4]} 41... Re4 {[%clk 0:00:25.2]} 42. Kg3 {[%clk
0:01:35.4]} 42... Re3+ {[%clk 0:00:20.6]} 43. Rf3 {[%clk 0:01:30.3]} 43... Re2
{[%clk 0:00:21.4]} 44. Rg4+ {[%clk 0:01:28.1]} 44... Kc5 {[%clk 0:00:20]} 45. h5
{[%clk 0:01:26.8]} 45... Bb1 {[%clk 0:00:20.7]} 46. a3 {[%clk 0:01:25]} 46...
Re5 {[%clk 0:00:19.4]} 47. Kh4 {[%clk 0:01:24.2]} 47... Ba2 {[%clk 0:00:16.6]}
48. Rg5 {[%clk 0:01:21.9]} 1-0

[Event "*** Titled Tuesday Blitz"]
[Site "Chess.com"]
[Date "2019.03.05"]
[Round "2"]
[White "jbj"]
[Black "Genghis_K"]
[Result "0-1"]
[WhiteElo "2581"]
[BlackElo "2836"]
[TimeControl "180+2"]
[EndTime "13:23:34 PST"]
[Termination "Genghis_K won by checkmate"]

1. e4 {[%clk 0:03:01.9]} 1... c5 {[%clk 0:02:56.8]} 2. d4 {[%clk 0:03:02.8]}
2... cxd4 {[%clk 0:02:56.7]} 3. c3 {[%clk 0:03:04.2]} 3... Nf6 {[%clk
0:02:56.6]} 4. e5 {[%clk 0:03:05.1]} 4... Nd5 {[%clk 0:02:57.9]} 5. Nf3 {[%clk
0:03:06.4]} 5... d6 {[%clk 0:02:58.7]} 6. exd6 {[%clk 0:03:07.1]} 6... Qxd6
{[%clk 0:02:56]} 7. Na3 {[%clk 0:03:07.7]} 7... Nc6 {[%clk 0:02:51.5]} 8. Nb5
{[%clk 0:03:07.5]} 8... Qd8 {[%clk 0:02:47.4]} 9. Be2 {[%clk 0:03:02.4]} 9... e6
{[%clk 0:02:44.5]} 10. Nbxd4 {[%clk 0:03:01.5]} 10... Bd7 {[%clk 0:02:42.8]} 11.
O-O {[%clk 0:03:01.4]} 11... Be7 {[%clk 0:02:39.3]} 12. Nxc6 {[%clk 0:02:59.5]}
12... Bxc6 {[%clk 0:02:39.1]} 13. Ne5 {[%clk 0:03:00.4]} 13... Qc7 {[%clk
0:02:36.6]} 14. Nxc6 {[%clk 0:03:01.1]} 14... bxc6 {[%clk 0:02:38.1]} 15. Qa4
{[%clk 0:02:56.9]} 15... O-O {[%clk 0:02:38]} 16. Qg4 {[%clk 0:02:51.5]} 16...
Bf6 {[%clk 0:02:34.6]} 17. c4 {[%clk 0:02:48.6]} 17... Ne7 {[%clk 0:02:31.5]}
18. Bf4 {[%clk 0:02:46.1]} 18... Be5 {[%clk 0:02:19.6]} 19. Bxe5 {[%clk
0:02:28.5]} 19... Qxe5 {[%clk 0:02:21.5]} 20. b3 {[%clk 0:02:27.6]} 20... Nf5
{[%clk 0:02:15.4]} 21. Rfe1 {[%clk 0:02:26.4]} 21... Nd4 {[%clk 0:02:07.9]} 22.
Bd3 {[%clk 0:02:25.1]} 22... Qf6 {[%clk 0:02:06]} 23. Rad1 {[%clk 0:02:24.3]}
23... c5 {[%clk 0:01:54.9]} 24. Be4 {[%clk 0:02:22.3]} 24... Rad8 {[%clk
0:01:53.1]} 25. Rd3 {[%clk 0:02:21.7]} 25... g6 {[%clk 0:01:50.2]} 26. h4 {[%clk
0:02:09.2]} 26... Qg7 {[%clk 0:01:40.9]} 27. Qf4 {[%clk 0:01:56.2]} 27... f5
{[%clk 0:01:29.7]} 28. Bf3 {[%clk 0:01:54.7]} 28... e5 {[%clk 0:01:19.1]} 29.
Qxe5 {[%clk 0:01:45.5]} 29... Qxe5 {[%clk 0:00:38.5]} 30. Rxe5 {[%clk
0:01:44.8]} 30... Rc8 {[%clk 0:00:40.4]} 31. Re7 {[%clk 0:01:38.7]} 31... a5
{[%clk 0:00:38.5]} 32. Bd5+ {[%clk 0:01:39.3]} 32... Kh8 {[%clk 0:00:39.4]} 33.
h5 {[%clk 0:01:39.5]} 33... Rfe8 {[%clk 0:00:37.4]} 34. Rde3 {[%clk 0:01:37.1]}
34... Rxe7 {[%clk 0:00:36.2]} 35. Rxe7 {[%clk 0:01:38.1]} 35... gxh5 {[%clk
0:00:37.7]} 36. Kh2 {[%clk 0:01:35]} 36... Rb8 {[%clk 0:00:29.6]} 37. Rc7 {[%clk
0:01:34.4]} 37... a4 {[%clk 0:00:30.2]} 38. bxa4 {[%clk 0:01:34.3]} 38... Rb4
{[%clk 0:00:31.6]} 39. Rxc5 {[%clk 0:01:34.1]} 39... Rxa4 {[%clk 0:00:33.1]} 40.
Rc7 {[%clk 0:01:27.7]} 40... Rxa2 {[%clk 0:00:32.3]} 41. f3 {[%clk 0:01:29]}
41... Rc2 {[%clk 0:00:31.5]} 42. Kh3 {[%clk 0:01:26.9]} 42... Ne2 {[%clk
0:00:32.1]} 43. g3 {[%clk 0:01:16.3]} 43... h6 {[%clk 0:00:33.2]} 44. Kh4 {[%clk
0:01:13.8]} 44... Nc3 {[%clk 0:00:27.6]} 45. Be6 {[%clk 0:01:04.1]} 45... Rh2#
{[%clk 0:00:13.7]} 0-1